Cogmind - Beta 15 *** ADVENTURER MODE // 2025.06.17 @ 22:54:46 Player: Pitter Result: Core destroyed Performance ------------- Evolutions (0) 0 Regions Visited (1) 200 Robots Destroyed (12) 60 Value Destroyed (339) 339 Prototype IDs (0) 0 Alien Tech Used (0) 0 Bonus (0) 0 TOTAL SCORE: 599 Bonus ------- None Cogmind --------- Core Integrity 0/250 Matter 285/300 Energy 67/125 System Corruption 0% Temperature Critical (611) Movement Walking (190) Ox1 Location -10/Materials Parts ------- > --- POWER (1) -------- Light Ion Engine > --- PROPULSION (2) --- Aluminum Leg Aluminum Leg > --- UTILITY (2) ------ Small Storage Unit Improved Terrain Scanner > --- WEAPON (2) ------- Particle Gun > --- INVENTORY (8) ---- Light Ion Engine Wheel Wheel Improved Heat Sink Terrain Scanner Seismic Detector Light Assault Rifle Peak State ------------ > --- POWER ------------ Light Ion Engine > --- PROPULSION ------- Aluminum Leg Aluminum Leg > --- UTILITY ---------- Small Storage Unit Improved Terrain Scanner > --- WEAPON ----------- EM Pulse Gun Light Assault Rifle > --- INVENTORY -------- Wheel Wheel Improved Heat Sink Terrain Scanner Terrain Scanner Seismic Detector Particle Gun [Rating: 10] Favorites ----------- Power Light Ion Engine Engine Light Ion Engine Propulsion Light Treads Treads Light Treads Leg Aluminum Leg Wheel Wheel Utility Small Storage Unit Device Improved Terrain Scanner Storage Small Storage Unit Weapon EM Pulse Gun Energy Gun EM Pulse Gun Ballistic Gun Light Assault Rifle Build | -11 -10 ------- Run | Yrd Mat Slots Evolved . | . . Power . | . . Propulsion . | . . Utility . | . . Weapon . | . . Parts Attached 13 | 6 7 Power 2 | 1 1 Engine 2 | 1 1 Core . | . . Reactor . | . . Propulsion 5 | 2 3 Treads 2 | 2 . Leg 2 | . 2 Wheel 1 | . 1 Hover . | . . Flight . | . . Utility 2 | 1 1 Device 1 | . 1 Storage 1 | 1 . Processor . | . . Hackware . | . . Protection . | . . Artifact . | . . Weapon 4 | 2 2 Energy Gun 3 | 2 1 Energy Cannon . | . . Ballistic Gun 1 | . 1 Ballistic Cannon . | . . Launcher . | . . Special Weapon . | . . Impact Weapon . | . . Slashing Weapon . | . . Piercing Weapon . | . . Special Melee Weapon . | . . Unidentified Prototypes . | . . Parts Lost 3 | . 3 Power 1 | . 1 Propulsion . | . . Utility . | . . Weapon 2 | . 2 Highest Loss Streak 1 | . 1 To Critical Strikes . | . . Average Backups 7 | 4 7 Power . | . . Propulsion 3 | 1 3 Utility 2 | . 2 Weapon . | 1 . Tool/Special . | . . Unused Backups 7 | 1 6 Power 1 | . 1 Propulsion 2 | 1 1 Utility 4 | . 4 Weapon . | . . Tool/Special . | . . Average Slot Usage (%) 90 | . 90 Engine 13 | . 13 Treads 18 | . 18 Leg 9 | . 9 Device 8 | . 8 Storage 14 | . 14 Energy Gun 15 | . 15 Ballistic Gun 9 | . 9 Peak Build Rating 10 | 7 10 Average Rating 7 | 5 8 On Entrance 3 | . 7 Naked Turns . | . . Heaviest Build 12 | 12 12 Greatest Support 40 | 40 40 Greatest Overweight (x) 1 | 1 1 Average Overweight (x) . | . . Largest Inventory Capacity 8 | 8 8 Average Capacity 7 | 7 8 Most Carried 8 | 8 8 Average Carried 7 | 4 7 Final Capacity 8 | 8 8 Final Carried 8 | 8 7 Class Distribution -------------------- 100% | Mutant Dominant Class ---------------- Mutant | -10/Materials Resources | -11 -10 ----------- Run | Yrd Mat Matter Collected 355 | 143 212 Remotely . | . . Salvage Created 609 | 145 464 Parts 33 | 11 22 Haulers Intercepted . | . . Recyclers Shooed 1 | . 1 Parts Field Recycled . | . . Retrieved Matter . | . . Parts Self-Destructed . | . . Prevented . | . . Kills | -11 -10 ------- Run | Yrd Mat Combat Hostiles Destroyed 7 | . 7 Guns 7 | . 7 Classes Destroyed 4 | 2 2 Tunneler 2 | 2 . Recycler 2 | 1 1 Watcher 1 | . 1 Grunt 7 | . 7 Best Kill Streak 3 | 3 3 Combat Bots Only 2 | . 2 Max Kills in Single Turn 1 | 1 1 Gunslinging . | . . Exploded . | . . Melee . | . . Uniques/NPCs Destroyed . | . . Combat | -11 -10 -------- Run | Yrd Mat Hostile Shots Fired 83 | . 83 Missed 16 | . 16 Hits 67 | . 67 Projectile 67 | . 67 Critical Strikes 1 | . 1 Damage Taken 834 | . 834 Core 266 | . 266 Absorbed by Shields . | . . Ignored by Resistances 211 | . 211 Regen/Repaired (Parts) 75 | . 75 Core Remaining (%) 100 | 100 . Volleys Fired 55 | 5 50 Largest 2 | 2 2 Hottest 105 | 80 105 Shots Fired 102 | 10 92 Gun 102 | 10 92 Cannon . | . . Launcher . | . . Special . | . . Kinetic 38 | . 38 Thermal 12 | . 12 Explosive . | . . Electromagnetic 52 | 10 42 Robot Hit Streak 24 | 4 24 Robot Miss Streak 1 | 1 1 Penetration Max . | . . Secondary Targets . | . . Shots Hit Robots 85 | 7 78 Core Hits 25 | 3 22 Critical Kills . | . . Critical Parts Destroyed . | . . Critical Strikes 1 | . 1 Corrupt 1 | . 1 Melee Attacks . | . . Impact . | . . Slashing . | . . Piercing . | . . Sneak Attacks . | . . Combat Hostiles . | . . Follow-up Attacks . | . . Damage Inflicted 874 | 92 782 Guns 748 | 92 656 Cannons . | . . Explosions 123 | . 123 Melee . | . . Ramming 3 | . 3 Kinetic 239 | . 239 Thermal 123 | . 123 Explosive . | . . Electromagnetic 509 | 92 417 Impact . | . . Slashing . | . . Piercing . | . . Highest Corruption . | . . Average Corruption . | . . Corruption Purged . | . . Corruption Blocked . | . . Overload Shots . | . . Overflow Damage 2 | . 2 Projectiles . | . . Explosions 2 | . 2 Melee . | . . Knockbacks . | . . Impact . | . . Kinetic . | . . Secondary . | . . Self-Inflicted Damage 61 | . 61 Shots 2 | . 2 Rammed 1 | . 1 Targets Rammed 1 | . 1 Kicked . | . . Crushed . | . . Highest Temperature 630 | 36 630 Average Temperature 111 | 19 122 Received Heat Transfer 486 | . 486 Effects 18 | . 18 Shutdowns 1 | . 1 Energy Bleed 1 | . 1 Interference 4 | . 4 Damage (minor) 2 | . 2 Damage (major) 7 | . 7 Damage (core) 3 | . 3 Siege Activations . | . . Martial Activations . | . . Shielding Activations . | . . Robots Disrupted . | . . Combat Hostiles . | . . Robots Corrupted . | . . Combat Hostiles . | . . Parts Fried 3 | 2 1 Impact Corruptions . | . . Robots Melted . | . . Combat Hostiles . | . . Parts Melted . | . . Heat Transferred 150 | . 150 Parts Sabotaged . | . . Parts Stolen . | . . Parts Stripped . | . . Power Chain Reactions 2 | . 2 Alert | -11 -10 ------- Run | Yrd Mat Maximum Alert Level . | . . Low Security (%) 100 | 100 100 Level 1 . | . . Level 2 . | . . Level 3 . | . . Level 4 . | . . Level 5 . | . . High Security . | . . Max Security . | . . Peak Influence 101 | 10 101 Initial . | . . Average 27 | . 32 Influence Increases 293 | 15 278 Destroy 0b10 Robot/C 140 | . 140 Destroy 0b10 Robot/NC 25 | 15 10 Destroy Leader 42 | . 42 Successful Hack 1 | . 1 Disable Machine 18 | . 18 Destroy Structure 7 | . 7 Lose Combat Pursuer 60 | . 60 Influence Decreases 291 | 15 276 Time Decay 261 | 15 246 Lost Part 30 | . 30 Squads Dispatched 2 | . 2 Investigation 2 | . 2 Extermination . | . . Reinforcement . | . . Assault . | . . Garrison . | . . Intercept . | . . Searches Triggered . | . . Construction Impeded . | . . Haulers Reinforced . | . . Active Scanning Responses . | . . Cargo Convoy Interrupts . | . . Stealth | -11 -10 --------- Run | Yrd Mat Distress Signals 3 | . 3 Communications Jammed . | . . Distress Signals . | . . Times Spotted 15 | . 15 Peak Tracking Total 4 | . 4 Tactical Retreats 4 | . 4 Traps | -11 -10 ------- Run | Yrd Mat Traps Triggered 1 | . 1 Indirectly . | . . Trap Hack Attempts . | . . Triggered . | . . Disarmed . | . . Reprogrammed . | . . Reused . | . . Traps Extracted . | . . Installed . | . . Triggered . | . . Machines | -11 -10 ---------- Run | Yrd Mat Machines Disabled 2 | . 2 Max in Single Turn 1 | . 1 Machines Repaired . | . . Machines Dismantled . | . . Machines Sabotaged . | . . Overloaded Fab Kills . | . . Hacking | -11 -10 --------- Run | Yrd Mat Machines Accessed 1 | . 1 Terminals . | . . Fabricators . | . . Repair Stations 1 | . 1 Recycling Units . | . . Scanalyzers . | . . Garrison Access . | . . Total Hacks 7 | . 7 Successful 6 | . 6 Failed 1 | . 1 Catastrophic . | . . Database Lockouts . | . . Manual . | . . Terminals . | . . Fabricators . | . . Repair Stations 7 | . 7 Recycling Units . | . . Scanalyzers . | . . Garrison Access . | . . Terminal Hacks . | . . Fabricator Hacks . | . . Repair Station Hacks 6 | . 6 Scan Component 3 | . 3 Repair 3 | . 3 Recycling Unit Hacks . | . . Scanalyzer . | . . Garrison Access Hacks . | . . Unauthorized Hacks . | . . Terminals . | . . Fabricators . | . . Repair Stations . | . . Recycling Units . | . . Scanalyzers . | . . Garrison Access . | . . Data Cores Recovered . | . . Used . | . . Hacking Detections 1 | . 1 Full Trace Events 1 | . 1 Feedback Events . | . . Feedback Blocked . | . . Robot Schematics Acquired . | . . Robots Built . | . . Authchips . | . . Time . | . . Total Robot Build Rating . | . . Part Schematics Acquired . | . . Parts Built . | . . Authchips . | . . Time . | . . Total Part Build Rating . | . . Parts Repaired 3 | . 3 Time 78 | . 78 Parts Recycled . | . . Recycled Matter . | . . Retrieved Matter . | . . Retrieved Components . | . . Parts Scanalyzed . | . . Part Schematics Acquired . | . . Parts Damaged . | . . Bothacking | -11 -10 ------------ Run | Yrd Mat Used RIF Installer . | . . Robots Hacked . | . . Non-combat . | . . Combat . | . . Robot Hacks Applied . | . . Relay Couplers Released . | . . Fabnet Peak Effective % . | . . Robots Rewired . | . . Allies Hacked . | . . Hacks Repelled . | . . Allies | -11 -10 -------- Run | Yrd Mat Total Allies . | . . Largest Group . | . . Highest-Rated Group . | . . Highest-Rated Ally . | . . Total Orders . | . . Ally Attacks . | . . Total Damage . | . . Kills . | . . Allies Corrupted . | . . Allies Melted . | . . Intel | -11 -10 ------- Run | Yrd Mat Active Infowar (turns) 385 | . 385 Terrain 385 | . 385 Robot Analysis Total . | . . Derelict Logs Recovered . | . . Drone Launches . | . . Drone Recoveries . | . . Exploration | -11 -10 ------------- Run | Yrd Mat Turns Passed 785 | 117 668 Spaces Moved 376 | 61 315 Core 16 | 16 . Treads 257 | 45 212 Legs 103 | . 103 Wheels . | . . Hover . | . . Flight . | . . Fastest Speed 50 | 50 120 Average Speed 158 | 132 162 Slowest Speed 190 | 160 190 Overloaded Moves . | . . Propulsion Burnouts . | . . Robots Hopped . | . . Potential Cave-ins . | . . Cave-ins Triggered . | . . Exploration Rate (%) 22 | 5 40 Regions Visited 1 Branch Regions . Pre-discovered Areas . | . . Known Exits Taken . | . . Unknown Exits Taken 1 | 1 . Scrap Searched . | . . Spaces Dug . | . . Terrain Destroyed 6 | . 6 Melee . | . . Projectile . | . . AOE 6 | . 6 Terrain Rammed . | . . Walls Destroyed . | . . Machines Disabled . | . . Actions | -11 -10 --------- Run | Yrd Mat Total 475 | 89 386 Wait . | . . Move 375 | 60 315 Hop . | . . Pick Up 24 | 16 8 Fast Attach . | . . Attach 13 | 6 7 Detach . | . . Swap 2 | . 2 Drop 5 | 2 3 Fire 55 | 5 50 Melee . | . . Ram . | . . Kick . | . . Crush 1 | . 1 Escape Stasis . | . . Rewire . | . . Trap . | . . Miscellaneous . | . . Route ------- -11/Scrapyard -10/Materials (discovered 3 exits: [Mat] / [*Min x2]) History --------- Turn | Location | Event 8 | -11/Scrapyard | Discovered new exit (range 15) 118 | -11/Scrapyard | Entered Materials 312 | -10/Materials | Build established: Mutant 449 | -10/Materials | Discovered new exit (range 9) 473 | -10/Materials | Discovered new exit (range 13) 699 | -10/Materials | Repaired Lgt. Assault Rifle 724 | -10/Materials | Discovered new exit (range 11) 725 | -10/Materials | Repaired EM Pulse Gun 751 | -10/Materials | Repaired Lgt. Assault Rifle 779 | -10/Materials | Core integrity fell below 50% 780 | -10/Materials | Core integrity fell below 20% 787 | -10/Materials | Core destroyed Last Messages --------------- 00780_ Overheating: Core damaged (-47). 00781_ Overheating: EM Pulse Gun damaged (-2). 00781_ Overheating: Aluminum Leg damaged (-8). 00781_ Overheating: Imp. Terrain Scanner damaged (-3). 00782_ Overheating: System interference. 00782_ Imp. Terrain Scanner temporarily disabled. 00782_ EM Pulse Gun temporarily disabled. 00785_ Overheating: System interference. 00785_ Particle Gun temporarily disabled. 00785_ EM Pulse Gun destroyed. 00786_ Overheating: Aluminum Leg damaged (-16). 00786_ Overheating: Sml. Storage Unit damaged (-41). 00786_ Overheating: Imp. Terrain Scanner damaged (-4). 00786_ Overheating: Aluminum Leg damaged (-8). 00786_ Acquired Lgt. Assault Rifle. 00787_ Overheating: Core damaged (-47). Map ----- +----------------------------------------------------+ | | | | | | | | | | | | | | | | | | | | | | | | | | | | | | | | | | | | | | | | | ????????????????????????????????? | | ????????????????????????????????? | | ????##########??????????????????? | | #???# #?"????????????????? | | ?#??# """ #??????????????????? | | ????# "R@! !#??????????????????? | | ????# """ = #??????????????????? | | ????# #???##?????????????? | | ????# """gg #??????????????????? | | ?#?## """ #????